fUSD/lending_fUSD_20250305
["ID","MTS","AMOUNT","RATE_DAILY","PERIOD"]
[355475582,1741197039404,-1082.83597765,0.00010993,2]
[355475583,1741197039425,-266.51402235,0.00010993,2]
[355475584,1741197039435,-575.81,0.00010993,2]
[355475585,1741197039444,-1008.6,0.00010993,2]
[355475586,1741197039453,-697.19,0.00010993,2]
[355475587,1741197039462,-166.88597765,0.00010993,2]
[355475588,1741197039473,-773.66300001,0.00010993,2]
[355475589,1741197039490,-1070.70831661,0.00010993,2]
[355475590,1741197039502,-306.87270573,0.00010993,2]
[355475591,1741197039511,-482.32394961,0.00010993,2]
[355475592,1741197039520,-841.80334466,0.00010993,2]
[355475595,1741197039974,-254.64665534,0.00010993,2]
[355475596,1741197039984,-500.0,0.00010993,2]
[355475597,1741197039994,-151.16763952,0.00010993,2]
[355475598,1741197040006,-2821.7,0.00010993,2]
[355475599,1741197040098,-804.75236048,0.00010993,2]
[355475600,1741197040109,-664.71,0.00010993,2]
[355475601,1741197040119,-488.03763952,0.00010993,2]
[355475602,1741197040132,-146.22236048,0.00010993,2]
[355475603,1741197040143,-1046.43,0.00010993,2]
[355475604,1741197040154,-500.0,0.00010993,2]
[355475605,1741197040163,-500.0,0.00010993,2]
[355475606,1741197040172,-568.89,0.00010993,2]
[355475607,1741197040182,-1003.03,0.00010993,2]
[355475608,1741197040193,-1188.02,0.00010993,2]
[355475609,1741197040205,-3337.66,0.00010993,2]
[355475610,1741197040214,-500.0,0.00010993,2]
[355475611,1741197040224,-1320.47,0.00010993,2]
[355475612,1741197040234,-1086.16,0.00010993,2]
[355475613,1741197040244,-500.0,0.00010993,2]
[355475614,1741197040253,-500.0,0.00010993,2]
[355475615,1741197040262,-813.52,0.00010993,2]
[355475616,1741197040271,-152.142384,0.00010993,2]
[355475617,1741197040281,-500.0,0.00010993,2]
[355475618,1741197040291,-500.0,0.00010993,2]
[355475619,1741197040301,-500.0,0.00010993,2]
[355475620,1741197040314,-909.11,0.00010993,2]
[355475621,1741197040324,-500.0,0.00010993,2]
[355475622,1741197040333,-1599.12,0.00010993,2]
[355475623,1741197040343,-500.0,0.00010993,2]
[355475624,1741197040352,-580.68,0.00010993,2]
[355475625,1741197040362,-500.0,0.00010993,2]
[355475626,1741197040371,-500.0,0.00010993,2]
[355475627,1741197040380,-500.0,0.00010993,2]
[355475628,1741197040390,-1055.33,0.00010993,2]
[355475629,1741197040399,-1653.0,0.00010993,2]
[355475630,1741197040408,-500.0,0.00010993,2]
[355475631,1741197040418,-500.0,0.00010993,2]
[355475632,1741197040427,-1528.24,0.00010993,2]
[355475633,1741197040436,-611.692567,0.00010993,2]
[355475634,1741197040446,-500.0,0.00010993,2]
[355475635,1741197040455,-500.0,0.00010993,2]
[355475636,1741197040464,-3448.32,0.00010993,2]
[355475637,1741197040473,-500.0,0.00010993,2]
[355475638,1741197040482,-500.0,0.00010993,2]
[355475639,1741197040491,-3493.2,0.00010993,2]
[355475640,1741197040500,-824.86,0.00010993,2]
[355475641,1741197040510,-981.14,0.00010993,2]
[355475642,1741197040519,-1050.34,0.00010993,2]
[355475643,1741197040529,-153.088695,0.00010993,2]
[355475644,1741197040538,-500.0,0.00010993,2]
[355475645,1741197040547,-2237.53,0.00010993,2]
[355475646,1741197040558,-150.369306,0.00010993,2]
[355475647,1741197040567,-728.2,0.00010993,2]
[355475648,1741197040577,-2189.37,0.00010993,2]
[355475649,1741197040586,-500.0,0.00010993,2]
[355475650,1741197040596,-1418.02,0.00010993,2]
[355475651,1741197040605,-791.77,0.00010993,2]
[355475653,1741197040614,-1014.57,0.00010993,2]
[355475655,1741197040624,-500.0,0.00010993,2]
[355475657,1741197040633,-4300.93,0.00010993,2]
[355475659,1741197040642,-1365.21,0.00010993,2]
[355475661,1741197040652,-549.55,0.00010993,2]
[355475663,1741197040662,-500.0,0.00010993,2]
[355475665,1741197040671,-2049.18,0.00010993,2]
[355475667,1741197040680,-500.0,0.00010993,2]
[355475669,1741197040690,-882.57,0.00010993,2]
[355475671,1741197040699,-2305.63,0.00010993,2]
[355475673,1741197040709,-500.0,0.00010993,2]
[355475675,1741197040719,-500.0,0.00010993,2]
[355475677,1741197040728,-500.0,0.00010993,2]
[355475679,1741197040736,-173.73304024,0.00010993,2]
[355475681,1741197040745,-999.73,0.00010993,2]
[355475683,1741197040754,-382.23105,0.00010993,2]
[355475685,1741197040764,-500.0,0.00010993,2]
[355475687,1741197040774,-1568.4,0.00010993,2]
[355475689,1741197040783,-768.74,0.00010993,2]
[355475691,1741197040792,-9798.2,0.00010993,2]
[355475693,1741197040802,-1013.29,0.00010993,2]
[355475695,1741197040814,-1083.38,0.00010993,2]
[355475697,1741197040824,-1271.35,0.00010993,2]
[355475699,1741197040833,-517.89530473,0.00010993,2]
[355475701,1741197040843,-745.48,0.00010993,2]
[355475703,1741197040852,-651.31,0.00010993,2]
[355475705,1741197040862,-1683.26,0.00010993,2]
[355475707,1741197040872,-6990.21,0.00010993,2]
[355475709,1741197040881,-500.0,0.00010993,2]
[355475711,1741197040891,-1429.39,0.00010993,2]
[355475713,1741197040902,-500.0,0.00010993,2]
[355475715,1741197040911,-500.0,0.00010993,2]
[355475717,1741197040920,-500.0,0.00010993,2]
[355475719,1741197040930,-500.0,0.00010993,2]
[355475721,1741197040939,-500.0,0.00010993,2]
[355475723,1741197040948,-500.0,0.00010993,2]
[355475725,1741197040957,-1713.73,0.00010993,2]
[355475727,1741197040966,-500.0,0.00010993,2]
[355475729,1741197040975,-802.67,0.00010993,2]
[355475731,1741197040984,-500.0,0.00010993,2]
[355475733,1741197040993,-945.28,0.00010993,2]
[355475735,1741197041003,-500.0,0.00010993,2]
[355475737,1741197041013,-500.0,0.00010993,2]
[355475739,1741197041022,-925.77,0.00010993,2]
[355475741,1741197041031,-756.75,0.00010993,2]
[355475743,1741197041040,-500.0,0.00010993,2]
[355475745,1741197041050,-825.02,0.00010993,2]
[355475747,1741197041060,-411.0383846,0.00010993,2]
[355475749,1741197041069,-500.0,0.00010994,2]
[355475751,1741197041079,-500.0,0.00010994,2]
[355475753,1741197041088,-500.0,0.00010994,2]
[355475755,1741197041097,-500.0,0.00010994,2]
[355475757,1741197041106,-500.0,0.00010994,2]
[355475759,1741197041116,-505.34,0.00010994,2]
[355475761,1741197041125,-500.0,0.00010994,2]
[355475763,1741197041134,-500.0,0.00010994,2]
[355475765,1741197041143,-500.0,0.00010994,2]
[355475766,1741197041152,-500.0,0.00010994,2]
[355475767,1741197041161,-500.0,0.00010994,2]
[355475768,1741197041171,-500.0,0.00010994,2]
[355475769,1741197041180,-500.0,0.00010994,2]
[355475770,1741197041189,-500.0,0.00010994,2]
[355475771,1741197041203,-500.0,0.00010994,2]
[355475772,1741197041212,-798.99,0.00010994,2]
[355475773,1741197041222,-500.0,0.00010994,2]
[355475774,1741197041231,-558.49,0.00010994,2]
[355475775,1741197041241,-500.0,0.00010994,2]
[355475776,1741197041252,-521.31,0.00010994,2]
[355475777,1741197041262,-500.0,0.00010994,2]
[355475778,1741197041271,-500.0,0.00010994,2]
[355475779,1741197041281,-500.0,0.00010994,2]
[355475780,1741197041291,-500.0,0.00010994,2]
[355475781,1741197041300,-500.0,0.00010994,2]
[355475782,1741197041310,-500.0,0.00010994,2]
[355475783,1741197041320,-500.0,0.00010994,2]
[355475784,1741197041329,-500.0,0.00010994,2]
[355475785,1741197041338,-503.05,0.00010994,2]
[355475786,1741197041347,-1175.01,0.00010994,2]
[355475787,1741197041356,-723.32,0.00010994,2]
[355475788,1741197041366,-500.0,0.00010994,2]
[355475789,1741197041375,-500.0,0.00010994,2]
[355475790,1741197041385,-951.15,0.00010994,2]
[355475791,1741197041394,-1012.54,0.00010994,2]
[355475792,1741197041403,-500.0,0.00010994,2]
[355475793,1741197041412,-518.74,0.00010994,2]
[355475794,1741197041422,-500.0,0.00010994,2]
[355475795,1741197041431,-500.0,0.00010994,2]
[355475796,1741197041441,-624.78,0.00010994,2]
[355475797,1741197041450,-500.0,0.00010994,2]
[355475798,1741197041459,-1284.23,0.00010994,2]
[355475799,1741197041468,-545.51,0.00010994,2]
[355475800,1741197041478,-500.0,0.00010994,2]
[355475801,1741197041487,-1085.02,0.00010994,2]
[355475802,1741197041496,-1200.13,0.00010994,2]
[355475803,1741197041506,-500.0,0.00010994,2]
[355475804,1741197041515,-737.4,0.00010994,2]
[355475805,1741197041524,-500.0,0.00010994,2]
[355475806,1741197041534,-1026.42,0.00010994,2]
[355475807,1741197041543,-836.72,0.00010994,2]
[355475808,1741197041552,-551.87747131,0.00010994,2]
[355475809,1741197041562,-965.96,0.00010994,2]
[355475810,1741197041570,-500.0,0.00010994,2]
[355475811,1741197041578,-500.0,0.00010994,2]
[355475812,1741197041587,-1310.87,0.00010994,2]
[355475813,1741197041597,-500.0,0.00010994,2]
[355475814,1741197041606,-500.0,0.00010994,2]
[355475815,1741197041616,-500.0,0.00010994,2]
[355475816,1741197041625,-1073.57,0.00010994,2]
[355475817,1741197041634,-500.0,0.00010994,2]
[355475818,1741197041644,-637.14,0.00010994,2]
[355475819,1741197041653,-1433.71,0.00010994,2]
[355475820,1741197041662,-727.78,0.00010994,2]
[355475821,1741197041671,-500.0,0.00010994,2]
[355475822,1741197041680,-754.62,0.00010994,2]
[355475823,1741197041690,-718.29,0.00010994,2]
[355475824,1741197041699,-500.0,0.00010994,2]
[355475825,1741197041708,-702.77,0.00010994,2]
[355475826,1741197041718,-513.98,0.00010994,2]
[355475827,1741197041727,-839.69,0.00010994,2]
[355475828,1741197041736,-500.0,0.00010994,2]
[355475829,1741197041745,-639.31,0.00010994,2]
[355475830,1741197041755,-591.63,0.00010994,2]
[355475831,1741197041764,-500.0,0.00010994,2]
[355475832,1741197041773,-744.66,0.00010994,2]
[355475833,1741197041782,-1082.64,0.00010994,2]
[355475834,1741197041792,-500.0,0.00010994,2]
[355475835,1741197041801,-500.0,0.00010994,2]
[355475836,1741197041814,-1290.25,0.00010994,2]
[355475837,1741197041823,-500.0,0.00010994,2]
[355475838,1741197041832,-500.0,0.00010994,2]
[355475839,1741197041842,-1232.18,0.00010994,2]
[355475840,1741197041851,-737.29,0.00010994,2]
[355475841,1741197041861,-587.13,0.00010994,2]
[355475842,1741197041870,-1071.33,0.00010994,2]
[355475843,1741197041880,-613.79,0.00010994,2]
[355475844,1741197041890,-526.05,0.00010994,2]
[355475845,1741197041899,-1367.61,0.00010994,2]
[355475846,1741197041908,-500.0,0.00010994,2]
[355475847,1741197041917,-1002.32,0.00010994,2]
[355475848,1741197041927,-973.8,0.00010994,2]
[355475849,1741197041935,-500.0,0.00010994,2]
[355475850,1741197041944,-658.81,0.00010994,2]
[355475851,1741197041954,-500.0,0.00010994,2]
[355475852,1741197041963,-628.88,0.00010994,2]
[355475853,1741197041972,-1024.85,0.00010994,2]
[355475854,1741197041981,-594.13,0.00010994,2]
[355475855,1741197041991,-758.99,0.00010994,2]
[355475856,1741197042001,-805.86,0.00010994,2]
[355475857,1741197042010,-845.46,0.00010994,2]
[355475858,1741197042020,-1085.85,0.00010994,2]
[355475859,1741197042029,-989.73,0.00010994,2]
[355475860,1741197042038,-6669.35,0.00010994,2]
[355475861,1741197042047,-500.0,0.00010994,2]
[355475862,1741197042059,-500.0,0.00010994,2]
[355475863,1741197042068,-790.32,0.00010994,2]
[355475864,1741197042078,-500.0,0.00010994,2]
[355475865,1741197042087,-1665.16,0.00010994,2]
[355475866,1741197042096,-500.0,0.00010994,2]
[355475867,1741197042105,-500.0,0.00010994,2]
[355475868,1741197042115,-500.0,0.00010994,2]
[355475869,1741197042124,-841.29,0.00010994,2]
[355475870,1741197042133,-531.08,0.00010994,2]
[355475871,1741197042142,-500.0,0.00010994,2]
[355475872,1741197042151,-527.42,0.00010994,2]
[355475873,1741197042161,-500.0,0.00010994,2]
[355475874,1741197042170,-1150.05,0.00010994,2]
[355475875,1741197042179,-500.0,0.00010994,2]
[355475876,1741197042191,-2031.05,0.00010994,2]
[355475877,1741197042201,-838.54,0.00010994,2]
[355475878,1741197042210,-500.0,0.00010994,2]
[355475879,1741197042219,-695.86,0.00010994,2]
[355475880,1741197042228,-909.9,0.00010994,2]
[355475881,1741197042238,-500.0,0.00010994,2]
[355475882,1741197042247,-714.07,0.00010994,2]
[355475883,1741197042256,-566.66,0.00010994,2]
[355475884,1741197042267,-715.67,0.00010994,2]
[355475885,1741197042277,-1170.63,0.00010994,2]
[355475886,1741197042286,-500.0,0.00010994,2]
[355475887,1741197042295,-500.0,0.00010994,2]
[355475888,1741197042306,-500.0,0.00010994,2]
[355475889,1741197042315,-973.18,0.00010994,2]
[355475890,1741197042324,-500.0,0.00010994,2]
[355475891,1741197042333,-578.59,0.00010994,2]
[355475892,1741197042342,-1114.85,0.00010994,2]
[355475893,1741197042351,-536.52,0.00010994,2]
[355475894,1741197042360,-500.0,0.00010994,2]
[355475895,1741197042368,-483.63,0.00010994,2]
[355475896,1741197042377,-300.64571051,0.00010994,2]
[355475897,1741197042386,-1764.96,0.00010994,2]
[355475898,1741197042395,-500.0,0.00010994,2]
[355475899,1741197042404,-1023.27,0.00010994,2]
[355475900,1741197042413,-513.67,0.00010994,2]
[355475901,1741197042422,-500.0,0.00010994,2]
[355475902,1741197042432,-1224.03,0.00010994,2]
[355475903,1741197042441,-1121.47,0.00010994,2]
[355475904,1741197042449,-610.7,0.00010994,2]
[355475905,1741197042458,-500.0,0.00010994,2]
[355475906,1741197042468,-414.82325107,0.00010994,2]
[355475907,1741197042477,-794.02,0.00010994,2]
[355475908,1741197042486,-1519.82,0.00010994,2]
[355475909,1741197042494,-500.0,0.00010994,2]
[355475910,1741197042503,-546.95158172,0.00010994,2]
[355475911,1741197042512,-500.0,0.00010994,2]
[355475912,1741197042521,-1478.45,0.00010994,2]
[355475913,1741197042530,-500.0,0.00010994,2]
[355475914,1741197042539,-901.93,0.00010994,2]
[355475915,1741197042547,-500.0,0.00010994,2]
[355475916,1741197042559,-500.0,0.00010994,2]
[355475917,1741197042568,-1887.83,0.00010994,2]
[355475918,1741197042577,-913.03,0.00010994,2]
[355475919,1741197042586,-1382.57,0.00010994,2]
[355475920,1741197042595,-500.0,0.00010994,2]
[355475921,1741197042604,-500.0,0.00010994,2]
[355475922,1741197042614,-4550.07,0.00010994,2]
[355475923,1741197042623,-1140.07,0.00010994,2]
[355475924,1741197042632,-320.24292554,0.00010994,2]
[355475925,1741197042649,-753.69950238,0.00010994,2]
[355475926,1741197042661,-8.31757208,0.00010994,2]
[355475927,1741197042670,-500.0,0.00010994,2]
[355475928,1741197042679,-222.58866154,0.00010994,2]
[355475929,1741197042692,-437.78133846,0.00010994,2]
[355475930,1741197042701,-3274.65,0.00010994,2]
[355475931,1741197042711,-500.0,0.00010994,2]
[355475932,1741197042721,-500.0,0.00010994,2]
[355475933,1741197042731,-17990.05,0.00010994,2]
[355475934,1741197042740,-500.0,0.00010994,2]
[355475935,1741197042749,-856.29,0.00010994,2]
[355475936,1741197042759,-375.04918944,0.00010994,2]
[355475937,1741197042768,-500.0,0.00010994,2]
[355475939,1741197042777,-500.0,0.00010994,2]
[355475940,1741197042786,-500.0,0.00010994,2]
[355475941,1741197042795,-500.0,0.00010994,2]
[355475942,1741197042807,-500.0,0.00010994,2]
[355475943,1741197042818,-500.0,0.00010994,2]
[355475944,1741197042827,-500.0,0.00010994,2]
[355475945,1741197042837,-1031.65,0.00010994,2]
[355475946,1741197042846,-500.0,0.00010994,2]
[355475948,1741197042855,-543.01603052,0.00010994,2]
[355475949,1741197042865,-1034.78,0.00010994,2]
[355475950,1741197042874,-675.86,0.00010994,2]
[355475951,1741197042883,-604.00100166,0.00010994,2]
[355475954,1741197042974,-885.70899834,0.00010994,2]
[355475955,1741197042984,-500.0,0.00010994,2]
[355475956,1741197042993,-554.15494231,0.00010994,2]
[355475957,1741197043003,-500.0,0.00010994,2]
[355475958,1741197043012,-500.0,0.00010994,2]
[355475959,1741197043023,-500.0,0.00010994,2]
[355475960,1741197043032,-500.0,0.00010994,2]
[355475961,1741197043042,-500.0,0.00010994,2]
[355475962,1741197043052,-2402.76,0.00010994,2]
[355475963,1741197043067,-1207.78,0.00010994,2]
[355475964,1741197043076,-500.0,0.00010994,2]
[355475965,1741197043086,-500.0,0.00010994,2]
[355475966,1741197043096,-500.0,0.00010994,2]
[355475967,1741197043105,-20334.95,0.00010994,2]
[355475968,1741197043114,-1586.05,0.00010994,2]
[355475969,1741197043124,-1547.21,0.00010994,2]
[355475970,1741197043331,-638.44,0.00010994,2]
[355475971,1741197043342,-714.14,0.00010994,2]
[355475972,1741197043352,-1169.07,0.00010994,2]
[355475973,1741197043361,-660.45,0.00010994,2]
[355475974,1741197043371,-742.33,0.00010994,2]
[355475975,1741197043380,-2250.83,0.00010994,2]
[355475976,1741197043391,-500.0,0.00010994,2]
[355475977,1741197043402,-3546.2,0.00010994,2]
[355475978,1741197043411,-500.0,0.00010994,2]
[355475979,1741197043421,-595.46,0.00010994,2]
[355475980,1741197043431,-699.79,0.00010994,2]
[355475982,1741197043441,-331.30705617,0.00010994,2]
[355475983,1741197043453,-168.69294383,0.00010994,2]
[355475984,1741197043462,-211.08905617,0.00010994,2]
[355475985,1741197043485,-288.91094383,0.00010994,2]
[355475986,1741197043494,-6884.84,0.00010994,2]
[355475987,1741197043504,-500.0,0.00010994,2]
[355475988,1741197043513,-1727.06,0.00010994,2]
[355475989,1741197043523,-500.0,0.00010994,2]
[355475990,1741197043532,-500.0,0.00010994,2]
[355475991,1741197043541,-508.28,0.00010994,2]
[355475992,1741197043551,-1043.92,0.00010994,2]
[355475993,1741197043562,-3650.59,0.00010994,2]
[355475994,1741197043572,-3060.88,0.00010994,2]
[355475995,1741197043581,-1630.35,0.00010994,2]
[355475996,1741197043591,-1428.02,0.00010994,2]
[355475998,1741197043601,-4254.27,0.00010994,2]
[355476000,1741197043610,-663.42,0.00010994,2]
[355476002,1741197043620,-500.0,0.00010994,2]
[355476003,1741197043630,-500.0,0.00010994,2]
[355476005,1741197043640,-2272.01243711,0.00010994,2]
[355476007,1741197043651,-623.53756289,0.00010994,2]
[355476008,1741197043660,-500.0,0.00010994,2]
[355476009,1741197043669,-982.04,0.00010994,2]
[355476010,1741197043679,-500.0,0.00010994,2]
[355476011,1741197043688,-852.31,0.00010994,2]
[355476012,1741197043697,-2477.73,0.00010994,2]
[355476013,1741197043707,-500.0,0.00010995,2]
[355476014,1741197043716,-623.09240759,0.00010995,2]
[355476015,1741197043726,-500.0,0.00010995,2]
[355476016,1741197043737,-651.23,0.00010995,2]
[355476017,1741197043747,-500.0,0.00010995,2]
[355476018,1741197043756,-619.42,0.00010995,2]
[355476019,1741197043766,-677.93,0.00010995,2]
[355476020,1741197043775,-500.0,0.00010995,2]
[355476021,1741197043785,-574.92,0.00010995,2]
[355476022,1741197043795,-766.63,0.00010995,2]
[355476023,1741197043808,-500.0,0.00010995,2]
[355476024,1741197043817,-444.55443953,0.00010995,2]
[355476025,1741197043827,-500.0,0.00010995,2]
[355476026,1741197043836,-671.87,0.00010995,2]
[355476027,1741197043846,-500.0,0.00010995,2]
[355476028,1741197043856,-1030.41,0.00010995,2]
[355476029,1741197043866,-500.0,0.00010995,2]
[355476030,1741197043876,-500.0,0.00010995,2]
[355476031,1741197043885,-513.28,0.00010995,2]
[355476032,1741197043895,-5442.44006497,0.00010996,2]
[355476033,1741197043904,-526.03528557,0.00010999,2]
[355476034,1741197043914,-5242.13003096,0.00011,2]
[355476035,1741197043926,-40276.02021021,0.00011,2]
[355476036,1741197043936,-254.08315584,0.00011008,2]
[355476037,1741197043945,-8361.97571107,0.0001101,2]
[355476038,1741197043955,-24211.814279,0.00011027,2]
[355476039,1741197043965,-254.08315584,0.00011028,2]
[355476040,1741197043974,-28898.83848458,0.00011047,2]
[355476041,1741197043984,-472.507,0.00011047,2]
[355476042,1741197043993,-2008.93682,0.00011047,2]
[355476043,1741197044004,-159.0,0.00011047,3]
[355476044,1741197044013,-200.0,0.00011047,2]
[355476045,1741197044024,-38022.19739807,0.0001105,2]
[355476046,1741197044037,-24211.814279,0.0001107,2]
[355476047,1741197044047,-38022.19739807,0.00011076,2]
[355476048,1741197044059,-5442.44006497,0.00011076,2]
[355476049,1741197044068,-254.08315584,0.0001108,2]
[355476050,1741197044078,-5442.44006497,0.00011084,2]
[355476051,1741197044088,-24211.814279,0.00011093,2]
[355476052,1741197044098,-8361.97571107,0.00011095,2]
[355476053,1741197044108,-8361.97571107,0.00011098,2]
[355476054,1741197044117,-2149.34450597,0.00011099,2]
[355476055,1741197044129,-2149.34450589,0.00011099,2]
[355476056,1741197044138,-1381.02227127,0.00011099,2]
[355476057,1741197044149,-1381.02227127,0.00011099,2]
[355476058,1741197044158,-1000.0,0.000111,2]
[355476059,1741197044169,-1000.0,0.000111,2]
[355476060,1741197044179,-1000.0,0.000111,2]
[355476061,1741197044191,-1000.0,0.000111,2]
[355476062,1741197044205,-1002.0,0.000111,2]
[355476063,1741197044216,-989.55,0.000111,2]
[355476064,1741197044225,-989.55,0.000111,2]
[355476065,1741197044237,-200.0,0.00011157,2]
[355476066,1741197044247,-349.2806748,0.00011168,2]
[355476067,1741197044257,-344.26675596,0.00011168,2]
[355476068,1741197044268,-184.99,0.00011178,2]
[355476069,1741197044279,-500.0,0.00011209,2]
[355476070,1741197044290,-1381.02227127,0.00011252,2]
[355476071,1741197044300,-2149.34450589,0.00011252,2]
[355476072,1741197044314,-176.586763,0.00011257,2]
[355476073,1741197044324,-11897.3344982,0.00011265,2]
[355476074,1741197044333,-8545.99392853,0.00011265,2]
[355476075,1741197044343,-500.0,0.00011266,2]
[355476076,1741197044353,-258.10047452,0.00011267,3]
[355476077,1741197044362,-500.0,0.00011267,2]
[355476078,1741197044372,-590.27,0.00011267,2]
[355476079,1741197044381,-500.0,0.00011267,2]
[355476080,1741197044391,-500.0,0.00011267,2]
[355476081,1741197044400,-670.22,0.00011267,2]
[355476082,1741197044411,-500.0,0.00011267,2]
[355476083,1741197044420,-771.15,0.00011267,2]
[355476084,1741197044430,-500.0,0.00011267,2]
[355476085,1741197044439,-500.0,0.00011267,2]
[355476086,1741197044449,-500.0,0.00011267,2]
[355476087,1741197044458,-500.0,0.00011267,2]
[355476088,1741197044467,-555.25,0.00011267,2]
[355476089,1741197044476,-500.0,0.00011267,2]
[355476090,1741197044486,-500.0,0.00011267,2]
[355476091,1741197044495,-500.0,0.00011267,2]
[355476092,1741197044504,-500.0,0.00011267,2]
[355476093,1741197044515,-262.276058,0.00011267,2]
[355476094,1741197044525,-500.0,0.00011267,2]
[355476095,1741197044535,-500.0,0.00011267,2]
[355476096,1741197044544,-615.89,0.00011267,2]
[355476097,1741197044554,-400.038083,0.00011267,2]
[355476098,1741197044565,-500.0,0.00011267,2]
[355476099,1741197044575,-638.77,0.00011267,2]
[355476100,1741197044585,-571.82,0.00011267,2]
[355476101,1741197044595,-500.0,0.00011267,2]
[355476102,1741197044604,-500.0,0.00011267,2]
[355476103,1741197044614,-500.0,0.00011267,2]
[355476104,1741197044623,-816.08,0.00011267,2]
[355476105,1741197044632,-500.0,0.00011267,2]
[355476106,1741197044641,-500.0,0.00011267,2]
[355476107,1741197044651,-500.0,0.00011267,2]
[355476108,1741197044660,-692.87,0.00011267,2]
[355476109,1741197044670,-559.96,0.00011267,2]
[355476110,1741197044680,-500.0,0.00011267,2]
[355476111,1741197044689,-894.27,0.00011267,2]
[355476112,1741197044698,-500.0,0.00011267,2]
[355476113,1741197044708,-500.0,0.00011267,2]
[355476114,1741197044718,-500.0,0.00011267,2]
[355476115,1741197044729,-724.3,0.00011267,2]
[355476116,1741197044738,-500.0,0.00011267,2]
[355476117,1741197044748,-500.0,0.00011267,2]
[355476118,1741197044757,-500.0,0.00011267,2]
[355476119,1741197044767,-500.0,0.00011267,2]
[355476120,1741197044776,-796.76,0.00011267,2]
[355476121,1741197044786,-725.64,0.00011267,2]
[355476122,1741197044795,-500.0,0.00011267,2]
[355476123,1741197044808,-500.0,0.00011267,2]
[355476124,1741197044817,-500.0,0.00011267,2]
[355476125,1741197044827,-717.0,0.00011267,2]
[355476126,1741197044837,-500.0,0.00011267,2]
[355476127,1741197044846,-500.0,0.00011267,2]
[355476128,1741197044855,-500.0,0.00011267,2]
[355476129,1741197044865,-500.0,0.00011267,2]
[355476130,1741197044874,-500.0,0.00011267,2]
[355476131,1741197044883,-500.0,0.00011267,2]
[355476132,1741197044892,-500.0,0.00011267,2]
[355476133,1741197044902,-558.16,0.00011267,2]
[355476134,1741197044911,-827.09,0.00011267,2]
[355476135,1741197044920,-696.55,0.00011267,2]
[355476136,1741197044929,-544.51,0.00011267,2]
[355476137,1741197044939,-500.0,0.00011267,2]
[355476138,1741197044948,-926.22,0.00011267,2]
[355476139,1741197044958,-599.32,0.00011267,2]
[355476140,1741197044967,-1167.31,0.00011267,2]
[355476141,1741197044977,-543.35,0.00011267,2]
[355476142,1741197044986,-696.12,0.00011267,2]
[355476143,1741197044996,-1367.83,0.00011267,2]
[355476144,1741197045005,-500.0,0.00011267,2]
[355476145,1741197045015,-1591.33,0.00011267,2]
[355476146,1741197045025,-697.96,0.00011267,2]
[355476147,1741197045035,-500.0,0.00011267,2]
[355476148,1741197045044,-1040.33,0.00011267,2]
[355476149,1741197045054,-500.0,0.00011267,2]
[355476150,1741197045065,-1784.85,0.00011267,2]